fUSD/lending_fUSD_20250530
["ID","MTS","AMOUNT","RATE_DAILY","PERIOD"]
[363073356,1748567446122,-420.0,0.00021917,2]
[363073362,1748567446132,-2121.17,0.00021917,2]
[363073368,1748567446141,-554.31,0.00021917,2]
[363073374,1748567446151,-1031.01,0.00021917,2]
[363073380,1748567446160,-1919.59,0.00021917,2]
[363073385,1748567446170,-420.0,0.00021917,2]
[363073390,1748567446179,-805.61,0.00021917,2]
[363073394,1748567446189,-6617.09,0.00021917,2]
[363073398,1748567446199,-805.47,0.00021917,2]
[363073402,1748567446208,-420.0,0.00021917,2]
[363073406,1748567446219,-420.0,0.00021917,2]
[363073410,1748567446230,-5188.45,0.00021917,2]
[363073414,1748567446240,-420.0,0.00021917,2]
[363073418,1748567446250,-1501.3,0.00021917,2]
[363073423,1748567446259,-914.04,0.00021917,2]
[363073428,1748567446269,-420.0,0.00021917,2]
[363073434,1748567446279,-420.0,0.00021917,2]
[363073439,1748567446289,-1429.17,0.00021917,2]
[363073444,1748567446298,-420.0,0.00021917,2]
[363073449,1748567446308,-420.0,0.00021917,2]
[363073453,1748567446318,-476.75,0.00021917,2]
[363073457,1748567446327,-420.0,0.00021917,2]
[363073461,1748567446336,-619.86,0.00021917,2]
[363073465,1748567446346,-420.0,0.00021917,2]
[363073469,1748567446355,-897.29,0.00021917,2]
[363073473,1748567446365,-420.0,0.00021917,2]
[363073478,1748567446375,-534.49,0.00021917,2]
[363073481,1748567446384,-420.0,0.00021917,2]
[363073485,1748567446394,-453.04,0.00021917,2]
[363073488,1748567446403,-3705.47,0.00021917,2]
[363073493,1748567446413,-393.99941544,0.00021917,2]
[363073497,1748567446422,-10052.21,0.00021917,2]
[363073500,1748567446431,-628.59,0.00021917,2]
[363073504,1748567446441,-420.0,0.00021917,2]
[363073508,1748567446451,-420.0,0.00021917,2]
[363073512,1748567446461,-1670.03,0.00021917,2]
[363073515,1748567446470,-4353.91,0.00021917,2]
[363073518,1748567446480,-420.0,0.00021917,2]
[363073521,1748567446489,-643.34,0.00021917,2]
[363073524,1748567446498,-420.0,0.00021917,2]
[363073527,1748567446507,-581.15,0.00021917,2]
[363073529,1748567446517,-1913.49,0.00021917,2]
[363073531,1748567446527,-1106.53,0.00021917,2]
[363073533,1748567446537,-534.27,0.00021917,2]
[363073535,1748567446546,-420.0,0.00021917,2]
[363073537,1748567446556,-420.0,0.00021917,2]
[363073539,1748567446565,-420.0,0.00021917,2]
[363073541,1748567446574,-615.95,0.00021917,2]
[363073543,1748567446583,-998.74,0.00021917,2]
[363073544,1748567446592,-3046.65,0.00021917,2]
[363073547,1748567446602,-3040.97,0.00021917,2]
[363073549,1748567446611,-420.0,0.00021917,2]
[363073551,1748567446621,-547.23,0.00021917,2]
[363073553,1748567446630,-736.75,0.00021917,2]
[363073555,1748567446640,-742.98,0.00021917,2]
[363073556,1748567446649,-1578.03,0.00021917,2]
[363073559,1748567446659,-888.77,0.00021917,2]
[363073561,1748567446668,-518.52172072,0.00021917,2]
[363073563,1748567446678,-420.0,0.00021917,2]
[363073565,1748567446687,-8484.25,0.00021917,2]
[363073567,1748567446697,-878.51,0.00021917,2]
[363073569,1748567446707,-629.54,0.00021917,2]
[363073571,1748567446716,-420.0,0.00021917,2]
[363073573,1748567446727,-420.0,0.00021917,2]
[363073582,1748567446807,-6125.67,0.00021917,2]
[363073584,1748567446816,-420.0,0.00021917,2]
[363073586,1748567446825,-14798.19,0.00021917,2]
[363073588,1748567446834,-420.0,0.00021917,2]
[363073590,1748567446843,-1654.58,0.00021917,2]
[363073592,1748567446852,-2178.38,0.00021917,2]
[363073594,1748567446861,-992.17,0.00021917,2]
[363073596,1748567446870,-520.1,0.00021917,2]
[363073598,1748567446879,-420.0,0.00021917,2]
[363073600,1748567446888,-2260.04,0.00021917,2]
[363073602,1748567446897,-420.0,0.00021917,2]
[363073604,1748567446906,-420.0,0.00021917,2]
[363073606,1748567446916,-1668.06,0.00021917,2]
[363073608,1748567446925,-420.0,0.00021917,2]
[363073610,1748567446933,-2220.69,0.00021917,2]
[363073612,1748567446946,-15244.66,0.00021917,2]
[363073614,1748567446956,-920.61,0.00021917,2]
[363073616,1748567446966,-420.0,0.00021917,2]
[363073618,1748567446976,-1125.76,0.00021917,2]
[363073620,1748567446986,-420.0,0.00021917,2]
[363073622,1748567446995,-1711.99,0.00021917,2]
[363073624,1748567447007,-667.39,0.00021917,2]
[363073626,1748567447017,-1859.03,0.00021917,2]
[363073628,1748567447026,-420.0,0.00021917,2]
[363073630,1748567447035,-4698.59,0.00021917,2]
[363073632,1748567447045,-511.4048304,0.00021917,2]
[363073634,1748567447054,-471.01,0.00021917,2]
[363073636,1748567447063,-861.94,0.00021917,2]
[363073638,1748567447073,-3882.28,0.00021917,2]
[363073640,1748567447083,-1428.18,0.00021917,2]
[363073644,1748567447101,-420.0,0.00021917,2]
[363073648,1748567447115,-479.39775988,0.00021917,2]
[363073651,1748567447124,-1412.53,0.00021917,2]
[363073654,1748567447134,-641.4,0.00021917,2]
[363073658,1748567447144,-5022.28,0.00021917,2]
[363073662,1748567447154,-1531.53,0.00021917,2]
[363073666,1748567447164,-420.0,0.00021917,2]
[363073670,1748567447174,-420.0,0.00021917,2]
[363073674,1748567447183,-1015.32,0.00021917,2]
[363073678,1748567447193,-818.0,0.00021917,2]
[363073682,1748567447203,-476.13,0.00021917,2]
[363073686,1748567447212,-1204.02,0.00021917,2]
[363073690,1748567447224,-420.0,0.00021917,2]
[363073694,1748567447233,-15309.96,0.00021917,2]
[363073697,1748567447243,-28979.02,0.00021917,2]
[363073701,1748567447253,-552.24,0.00021917,2]
[363073705,1748567447264,-2359.55,0.00021917,2]
[363073709,1748567447274,-420.0,0.00021917,2]
[363073713,1748567447284,-1224.72,0.00021917,2]
[363073717,1748567447294,-467.49,0.00021917,2]
[363073721,1748567447304,-420.0,0.00021917,2]
[363073725,1748567447314,-420.0,0.00021917,2]
[363073729,1748567447323,-465.7,0.00021917,2]
[363073733,1748567447332,-736.87,0.00021917,2]
[363073737,1748567447341,-7648.34,0.00021917,2]
[363073741,1748567447351,-2116.12,0.00021917,2]
[363073744,1748567447360,-420.0,0.00021917,2]
[363073748,1748567447370,-422.35,0.00021917,2]
[363073752,1748567447380,-430.86,0.00021917,2]
[363073756,1748567447390,-420.0,0.00021917,2]
[363073761,1748567447400,-420.0,0.00021917,2]
[363073765,1748567447410,-3472.42,0.00021917,2]
[363073768,1748567447420,-821.75,0.00021917,2]
[363073770,1748567447429,-420.0,0.00021917,2]
[363073774,1748567447439,-420.0,0.00021917,2]
[363073776,1748567447449,-1672.67,0.00021917,2]
[363073779,1748567447459,-420.0,0.00021917,2]
[363073783,1748567447469,-420.0,0.00021917,2]
[363073786,1748567447483,-1699.51,0.00021917,2]
[363073789,1748567447492,-996.77,0.00021917,2]
[363073791,1748567447501,-9594.7,0.00021917,2]
[363073794,1748567447511,-1175.24,0.00021917,2]
[363073797,1748567447520,-1181.19,0.00021917,2]
[363073801,1748567447529,-3548.85,0.00021917,2]
[363073804,1748567447539,-667.05,0.00021917,2]
[363073806,1748567447548,-1529.05,0.00021917,2]
[363073809,1748567447559,-577.8,0.00021917,2]
[363073812,1748567447569,-601.13,0.00021917,2]
[363073815,1748567447579,-3832.82,0.00021917,2]
[363073818,1748567447589,-420.0,0.00021917,2]
[363073821,1748567447599,-3990.23,0.00021917,2]
[363073825,1748567447610,-420.0,0.00021917,2]
[363073827,1748567447620,-1381.51,0.00021917,2]
[363073830,1748567447629,-1130.63,0.00021917,2]
[363073832,1748567447638,-420.0,0.00021917,2]
[363073834,1748567447648,-2963.63,0.00021917,2]
[363073836,1748567447659,-875.63,0.00021917,2]
[363073837,1748567447673,-422.25935512,0.00021917,2]
[363073840,1748567447684,-1423.77,0.00021917,2]
[363073842,1748567447695,-526.65,0.00021917,2]
[363073844,1748567447706,-420.0,0.00021917,2]
[363073846,1748567447718,-420.0,0.00021917,2]
[363073848,1748567447735,-1758.76,0.00021917,2]
[363073850,1748567447745,-2064.34,0.00021917,2]
[363073852,1748567447756,-420.0,0.00021917,2]
[363073854,1748567447766,-420.0,0.00021917,2]
[363073856,1748567447776,-1315.8,0.00021917,2]
[363073858,1748567447785,-420.0,0.00021917,2]
[363073860,1748567447795,-4857.07,0.00021917,2]
[363073862,1748567447804,-979.36,0.00021917,2]
[363073864,1748567447821,-420.0,0.00021917,2]
[363073866,1748567447831,-697.13,0.00021917,2]
[363073868,1748567447841,-420.0,0.00021917,2]
[363073870,1748567447850,-420.0,0.00021917,2]
[363073873,1748567447860,-2877.93,0.00021917,2]
[363073875,1748567447871,-780.7,0.00021917,2]
[363073877,1748567447881,-570.8,0.00021917,2]
[363073879,1748567447892,-4617.04,0.00021917,2]
[363073881,1748567447902,-828.05,0.00021917,2]
[363073883,1748567447911,-682.18,0.00021917,2]
[363073885,1748567447921,-4628.25,0.00021917,2]
[363073887,1748567447930,-730.07,0.00021917,2]
[363073889,1748567447939,-796.59,0.00021917,2]
[363073891,1748567447949,-420.0,0.00021917,2]
[363073892,1748567447959,-420.0,0.00021917,2]
[363073893,1748567447969,-801.76,0.00021917,2]
[363073894,1748567447981,-420.0,0.00021917,2]
[363073895,1748567447991,-420.0,0.00021917,2]
[363073896,1748567448001,-483.63,0.00021917,2]
[363073897,1748567448013,-420.0,0.00021917,2]
[363073898,1748567448023,-420.0,0.00021917,2]
[363073899,1748567448034,-420.0,0.00021917,2]
[363073901,1748567448045,-3302.28,0.00021917,2]
[363073903,1748567448058,-420.0,0.00021917,2]
[363073905,1748567448068,-6670.97,0.00021917,2]
[363073907,1748567448078,-420.0,0.00021917,2]
[363073909,1748567448089,-420.0,0.00021917,2]
[363073911,1748567448099,-435.18111297,0.00021917,2]
[363073913,1748567448109,-1928.51,0.00021917,2]
[363073915,1748567448120,-329.68288899,0.00021917,2]
[363073917,1748567448130,-3752.85,0.00021917,2]
[363073919,1748567448139,-420.0,0.00021917,2]
[363073921,1748567448149,-1099.24,0.00021917,2]
[363073923,1748567448159,-420.0,0.00021917,2]
[363073925,1748567448169,-420.0,0.00021917,2]
[363073927,1748567448180,-429.59127863,0.00021917,2]
[363073929,1748567448190,-634.09,0.00021917,2]
[363073931,1748567448201,-420.0,0.00021917,2]
[363073933,1748567448211,-1287.72,0.00021917,2]
[363073935,1748567448222,-1612.92,0.00021917,2]
[363073937,1748567448235,-420.0,0.00021917,2]
[363073939,1748567448245,-420.0,0.00021917,2]
[363073941,1748567448255,-334.90611796,0.00021917,2]
[363073943,1748567448266,-1050.04,0.00021917,2]
[363073945,1748567448276,-420.0,0.00021917,2]
[363073947,1748567448286,-619.03,0.00021917,2]
[363073949,1748567448296,-423.6,0.00021917,2]
[363073951,1748567448306,-420.0,0.00021917,2]
[363073953,1748567448316,-420.0,0.00021917,2]
[363073955,1748567448326,-486.53010569,0.00021917,2]
[363073957,1748567448335,-420.0,0.00021917,2]
[363073959,1748567448346,-1608.58,0.00021917,2]
[363073961,1748567448356,-427.28679114,0.00021917,2]
[363073963,1748567448367,-379.96419233,0.00021917,2]
[363073965,1748567448378,-428.07394457,0.00021917,2]
[363073967,1748567448388,-3736.61,0.00021917,2]
[363073969,1748567448399,-420.0,0.00021917,2]
[363073971,1748567448409,-8595.29,0.00021917,2]
[363073973,1748567448420,-612.6,0.00021917,2]
[363073976,1748567448430,-420.0,0.00021917,2]
[363073978,1748567448440,-168673.41,0.00021917,2]
[363073980,1748567448450,-7535.6,0.00021917,2]
[363073982,1748567448460,-678.35,0.00021917,2]
[363073984,1748567448471,-3008.59,0.00021917,2]
[363073985,1748567448482,-420.0,0.00021917,2]
[363073988,1748567448492,-420.0,0.00021917,2]
[363073989,1748567448502,-420.0,0.00021917,2]
[363073992,1748567448512,-1274.75,0.00021917,2]
[363073994,1748567448526,-420.0,0.00021917,2]
[363073996,1748567448536,-420.0,0.00021917,2]
[363073998,1748567448545,-900.5,0.00021917,2]
[363074000,1748567448555,-420.0,0.00021917,2]
[363074002,1748567448565,-421.69462773,0.00021917,2]
[363074004,1748567448575,-4332.43,0.00021917,2]
[363074006,1748567448585,-420.0,0.00021917,2]
[363074008,1748567448595,-11612.51,0.00021917,2]
[363074010,1748567448605,-420.0,0.00021917,2]
[363074012,1748567448615,-420.0,0.00021917,2]
[363074014,1748567448624,-715.71,0.00021917,2]
[363074016,1748567448633,-1371.33,0.00021917,2]
[363074018,1748567448642,-665.27,0.00021917,2]
[363074021,1748567448652,-420.0,0.00021917,2]
[363074023,1748567448661,-515.1,0.00021917,2]
[363074025,1748567448671,-420.0,0.00021917,2]
[363074027,1748567448681,-1711.45,0.00021917,2]
[363074029,1748567448691,-13387.63,0.00021917,2]
[363074031,1748567448700,-1138.6,0.00021917,2]
[363074033,1748567448710,-1631.67,0.00021917,2]
[363074035,1748567448720,-357.23469482,0.00021917,2]
[363074037,1748567448733,-1113.43,0.00021917,2]
[363074039,1748567448744,-420.0,0.00021917,2]
[363074041,1748567448754,-1556.17,0.00021917,2]
[363074043,1748567448764,-420.0,0.00021917,2]
[363074045,1748567448774,-240.0,0.00021917,2]
[363074047,1748567448784,-420.0,0.00021917,2]
[363074049,1748567448794,-420.0,0.00021917,2]
[363074051,1748567448804,-500.0,0.00021917,2]
[363074053,1748567448814,-420.0,0.00021917,2]
[363074055,1748567448824,-464.55,0.00021917,2]
[363074057,1748567448834,-152.17,0.00021918,2]
[363074059,1748567448844,-3043.7604636,0.00021922,2]
[363074061,1748567448853,-3043.7604636,0.00021937,2]
[363074063,1748567448863,-9238.1617119,0.00021939,2]
[363074065,1748567448875,-3043.7604636,0.00021953,2]
[363074068,1748567448886,-3043.7604636,0.00021968,2]
[363074070,1748567448897,-9238.1617119,0.00021969,2]
[363074071,1748567448907,-35056.50170356,0.0002197,2]
[363074074,1748567448918,-151.0,0.0002197,7]
[363074075,1748567448928,-151.0,0.0002197,7]
[363074078,1748567448938,-151.0,0.0002197,7]
[363074080,1748567448949,-340.69433585,0.00021973,2]
[363074082,1748567448959,-500.61020259,0.00021973,2]
[363074084,1748567448970,-500.0,0.00021973,2]
[363074086,1748567448988,-500.0,0.00021973,2]
[363074088,1748567448999,-313.38468215,0.00021973,2]
[363074090,1748567449012,-155.9126574,0.00021973,2]
[363074092,1748567449023,-500.0,0.00021973,2]
[363074094,1748567449034,-500.0,0.00021973,2]
[363074096,1748567449046,-500.70967186,0.00021973,2]
[363074098,1748567449059,-500.0,0.00021973,2]
[363074100,1748567449074,-500.0,0.00021973,2]
[363074103,1748567449087,-500.0,0.00021973,2]
[363074105,1748567449097,-500.0,0.00021973,2]
[363074107,1748567449108,-151.0,0.00021976,7]
[363074109,1748567449119,-151.0,0.00021976,7]
[363074111,1748567449130,-3043.7604636,0.00021983,2]
[363074113,1748567449141,-3043.7604636,0.00021998,2]
[363074115,1748567449152,-12065.64741082,0.00022,2]
[363074117,1748567449162,-9238.1617119,0.00022,2]
[363074119,1748567449174,-2368.97945534,0.00022,2]
[363074121,1748567449186,-359.0,0.00022,2]
[363074123,1748567449197,-157.0,0.00022,2]
[363074125,1748567449208,-152.0,0.00022,2]
[363074128,1748567449221,-3043.7604636,0.00022014,2]
[363074130,1748567449242,-1443.808942,0.00022014,3]
[363074132,1748567449253,-3043.7604636,0.00022029,2]
[363074134,1748567449265,-12065.64741082,0.0002203,2]
[363074136,1748567449277,-9238.1617119,0.0002203,2]
[363074138,1748567449289,-3043.7604636,0.00022044,2]
[363074140,1748567449301,-3043.7604636,0.00022059,2]
[363074142,1748567449313,-12065.64741082,0.00022061,2]
[363074144,1748567449325,-9238.1617119,0.00022061,2]
[363074146,1748567449337,-151.0,0.00022061,7]
[363074149,1748567449348,-3043.7604636,0.00022075,2]
[363074151,1748567449358,-500.0,0.00022089,2]
[363074153,1748567449369,-279.1598223,0.0002209,2]
[363074155,1748567449382,-10312.39291952,0.0002209,2]
[363074157,1748567449393,-3043.7604636,0.0002209,2]
[363074159,1748567449405,-610.44667694,0.0002209,2]
[363074161,1748567449416,-2527.68795654,0.0002209,2]
[363074163,1748567449427,-12065.64741082,0.00022091,2]
[363074165,1748567449439,-9238.1617119,0.00022091,2]
[363074168,1748567449450,-161.41357888,0.00022091,2]
[363074170,1748567449462,-150.0,0.00022124,2]
[363074172,1748567449476,-150.0,0.00022124,2]
[363074174,1748567449491,-278.676,0.00022124,2]
[363074176,1748567449503,-199.189,0.00022124,2]
[363074178,1748567449515,-1313.0,0.00022124,2]
[363074180,1748567449526,-966.493,0.00022124,2]
[363074182,1748567449536,-634.0,0.00022124,2]
[363074184,1748567449547,-800.0,0.00022124,2]
[363074186,1748567449558,-1573.152,0.00022124,2]
[363074188,1748567449569,-1267.0,0.00022124,2]
[363074190,1748567449580,-587.0,0.00022124,2]
[363074193,1748567449591,-924.0,0.00022124,2]
[363074195,1748567449602,-556.0,0.00022124,2]
[363074197,1748567449612,-500.0,0.00022137,2]
[363074199,1748567449622,-500.0,0.00022164,2]
[363074201,1748567449633,-156.25191989,0.00022169,2]
[363074203,1748567449643,-160.59920839,0.00022173,2]
[363074205,1748567449654,-500.0,0.00022173,2]
[363074207,1748567449667,-500.0,0.00022173,2]
[363074209,1748567449677,-191.57200987,0.00022173,2]
[363074211,1748567449688,-500.41109607,0.00022173,2]
[363074214,1748567449699,-500.0,0.00022173,2]
[363074216,1748567449716,-500.0,0.00022173,2]
[363074219,1748567449729,-500.0,0.00022173,2]
[363074221,1748567449739,-500.0,0.00022173,2]
[363074223,1748567449749,-321.58325899,0.00022173,2]
[363074225,1748567449759,-159.55176198,0.00022173,2]
[363074227,1748567449770,-500.0,0.00022173,2]
[363074229,1748567449780,-500.0,0.00022173,2]
[363074231,1748567449791,-159.53001483,0.00022173,2]
[363074233,1748567449800,-500.65615508,0.00022173,2]
[363074235,1748567449810,-153.161039,0.00022173,2]
[363074237,1748567449820,-416.25532239,0.00022173,2]
[363074240,1748567449831,-500.0,0.00022173,2]
[363074242,1748567449841,-500.81843102,0.00022173,2]
[363074244,1748567449851,-500.0,0.00022173,2]
[363074246,1748567449861,-510.95044515,0.00022173,2]
[363074247,1748567449872,-500.0,0.00022173,2]
[363074248,1748567449882,-500.0,0.00022173,2]
[363074249,1748567449893,-511.6034039,0.00022173,2]
[363074250,1748567449904,-500.0,0.00022173,2]
[363074251,1748567449914,-160.99311434,0.00022173,2]
[363074252,1748567449924,-500.0,0.00022173,2]
[363074253,1748567449934,-212.01724112,0.00022173,2]
[363074254,1748567449944,-500.0,0.00022173,2]
[363074256,1748567449954,-522.17204485,0.00022173,2]
[363074258,1748567449964,-500.0,0.00022173,2]
[363074260,1748567449973,-500.0,0.00022173,2]
[363074262,1748567449988,-450.81301268,0.00022173,2]
[363074264,1748567450001,-500.0,0.00022173,2]
[363074266,1748567450011,-602.21075139,0.00022173,2]
[363074268,1748567450022,-502.98028434,0.00022173,2]
[363074270,1748567450032,-500.0,0.00022173,2]
[363074272,1748567450043,-500.0,0.00022173,2]
[363074274,1748567450054,-500.0,0.00022173,2]
[363074276,1748567450064,-500.0,0.00022173,2]
[363074278,1748567450076,-501.56988309,0.00022173,2]
[363074281,1748567450087,-154.46315392,0.00022173,2]
[363074283,1748567450097,-500.86920265,0.00022173,2]
[363074285,1748567450108,-150.0,0.00022177,3]
[363074287,1748567450118,-150.0,0.00022178,3]
[363074289,1748567450129,-150.0,0.00022179,3]
[363074291,1748567450139,-150.0,0.00022181,3]
[363074294,1748567450159,-150.0,0.00022182,3]
[363074297,1748567450170,-5000.0,0.00022182,2]
[363074299,1748567450181,-548.52,0.00022182,2]
[363074301,1748567450191,-217.36965855,0.00022182,2]
[363074303,1748567450202,-201.07780551,0.00022182,2]
[363074305,1748567450213,-220.20433316,0.00022182,2]
[363074307,1748567450223,-500.0,0.00022182,2]
[363074309,1748567450237,-500.0,0.00022182,2]
[363074312,1748567450247,-500.0,0.00022182,2]
[363074314,1748567450257,-500.0,0.00022182,2]
[363074316,1748567450267,-167.35499006,0.00022182,2]
[363074318,1748567450278,-151.0,0.00022183,7]
[363074320,1748567450288,-151.0,0.00022183,7]
[363074322,1748567450298,-151.0,0.00022183,7]
[363074324,1748567450308,-7356.7962941,0.00022183,2]
[363074326,1748567450319,-213.349849,0.00022183,7]
[363074329,1748567450329,-213.349849,0.00022183,7]
[363074331,1748567450339,-70368.3241125,0.00022183,2]
[363074333,1748567450349,-300.405719,0.00022183,7]
[363074335,1748567450362,-300.405719,0.00022183,7]
[363074337,1748567450372,-13056.9258449,0.00022183,2]
[363074339,1748567450383,-151.0,0.00022183,7]
[363074341,1748567450393,-1812.8363796,0.00022183,2]
[363074343,1748567450404,-10794.6794774,0.00022183,2]
[363074346,1748567450414,-151.0,0.00022183,7]
[363074348,1748567450424,-353.569563,0.00022183,7]
[363074349,1748567450434,-353.569563,0.00022183,7]
[363074351,1748567450445,-5103.2521532,0.00022183,2]
[363074353,1748567450455,-97171.5190732,0.00022183,2]
[363074356,1748567450465,-37979.1361172,0.00022183,2]
[363074358,1748567450478,-151.0,0.00022183,7]
[363074360,1748567450488,-151.0,0.00022183,7]
[363074362,1748567450499,-1696.06273065,0.00022189,3]
[363074364,1748567450509,-206.84,0.0002219,2]
[363074366,1748567450519,-500.0,0.0002219,2]
[363074368,1748567450530,-500.0,0.0002219,2]
[363074370,1748567450540,-500.0,0.0002219,2]
[363074373,1748567450550,-151.0,0.0002219,7]
[363074375,1748567450561,-548.52,0.0002219,2]
[363074377,1748567450571,-548.52,0.0002219,2]
[363074379,1748567450582,-548.52,0.0002219,2]
[363074381,1748567450592,-548.52,0.0002219,2]
[363074383,1748567450602,-151.0,0.0002219,7]
[363074385,1748567450612,-151.0,0.0002219,7]
[363074387,1748567450622,-151.0,0.0002219,7]
[363074389,1748567450632,-123898.86141915,0.00022191,2]
[363074391,1748567450642,-151.0,0.00022191,7]
[363074394,1748567450652,-151.0,0.00022191,7]
[363074396,1748567450662,-151.0,0.00022191,7]
[363074398,1748567450672,-151.0,0.00022191,7]
[363074400,1748567450682,-151.0,0.00022191,7]
[363074402,1748567450692,-151.0,0.00022191,7]
[363074404,1748567450702,-151.0,0.00022191,7]
[363074406,1748567450712,-420.0,0.00022191,2]
[363074408,1748567450722,-420.0,0.00022191,2]
[363074410,1748567450734,-420.0,0.00022191,2]
[363074413,1748567450744,-151.45216592,0.00022191,2]
[363074415,1748567450754,-202.793408,0.00022191,7]
[363074417,1748567450764,-202.793408,0.00022191,7]
[363074419,1748567450774,-420.0,0.00022191,2]
[363074421,1748567450783,-1680.74235,0.00022191,2]
[363074423,1748567450793,-1800.005119,0.00022191,2]
[363074425,1748567450802,-549.0,0.00022191,2]
[363074427,1748567450812,-720.79,0.00022191,2]
[363074429,1748567450822,-420.0,0.00022191,2]
[363074431,1748567450832,-548.36,0.00022191,2]
[363074433,1748567450842,-151.0,0.00022191,7]
[363074435,1748567450852,-971.12,0.00022191,2]
[363074437,1748567450861,-566.41,0.00022191,2]
[363074439,1748567450871,-431.18304094,0.00022191,2]
[363074441,1748567450881,-566.41,0.00022191,2]
[363074444,1748567450891,-420.0,0.00022191,2]
[363074446,1748567450900,-151.0,0.00022191,7]
[363074448,1748567450910,-151.0,0.00022191,7]
[363074450,1748567450919,-420.0,0.00022191,2]
[363074452,1748567450929,-151.0,0.00022191,7]
[363074454,1748567450940,-151.0,0.00022191,7]
[363074456,1748567450949,-420.0,0.00022191,2]
[363074458,1748567450959,-397.89,0.00022191,2]
[363074460,1748567450969,-541.2,0.00022191,2]
[363074462,1748567450982,-420.0,0.00022191,2]
[363074464,1748567450992,-420.0,0.00022191,2]
[363074466,1748567451004,-151.0,0.00022191,7]
[363074468,1748567451016,-420.0,0.00022191,2]
[363074470,1748567451026,-420.0,0.00022191,2]
[363074471,1748567451035,-420.0,0.00022191,2]
[363074474,1748567451046,-419.11861666,0.00022191,2]
[363074476,1748567451056,-420.0,0.00022191,2]
[363074478,1748567451067,-420.0,0.00022191,2]
[363074480,1748567451077,-534.61,0.00022191,2]
[363074482,1748567451088,-420.0,0.00022191,2]
[363074484,1748567451099,-151.0,0.00022191,7]
[363074486,1748567451109,-151.0,0.00022191,7]
[363074488,1748567451120,-420.0,0.00022191,2]
[363074490,1748567451131,-151.0,0.00022191,7]
[363074492,1748567451141,-1096.86,0.00022191,2]
[363074494,1748567451152,-420.0,0.00022191,2]
[363074496,1748567451162,-420.0,0.00022191,2]
[363074498,1748567451173,-565.06,0.00022191,2]
[363074501,1748567451184,-420.0,0.00022191,2]
[363074502,1748567451200,-420.0,0.00022191,2]
[363074503,1748567451212,-420.0,0.00022191,2]
[363074505,1748567451225,-420.0,0.00022191,2]
[363074507,1748567451237,-420.0,0.00022191,2]
[363074509,1748567451248,-420.0,0.00022191,2]
[363074511,1748567451259,-420.0,0.00022191,2]
[363074512,1748567451271,-420.0,0.00022191,2]
[363074513,1748567451282,-420.0,0.00022191,2]
[363074514,1748567451294,-151.0,0.00022191,7]
[363074515,1748567451305,-420.0,0.00022191,2]
[363074516,1748567451317,-151.0,0.00022191,7]
[363074518,1748567451328,-420.0,0.00022191,2]
[363074520,1748567451339,-667.22,0.00022191,2]
[363074522,1748567451350,-469.9,0.00022191,2]
[363074524,1748567451361,-420.0,0.00022191,2]
[363074525,1748567451372,-420.0,0.00022191,2]
[363074526,1748567451383,-420.0,0.00022191,2]
[363074528,1748567451395,-463.2,0.00022191,2]
[363074531,1748567451406,-420.0,0.00022191,2]
[363074532,1748567451417,-420.0,0.00022191,2]